fUSD/lending_fUSD_20241112
["ID","MTS","AMOUNT","RATE_DAILY","PERIOD"]
[342066212,1731397870065,-150.0,0.00014535,5]
[342066213,1731397870074,-1797.61120695,0.00014555,2]
[342066214,1731397870083,-232.46,0.0001456,2]
[342066215,1731397870093,-2590.18799657,0.00014588,2]
[342066216,1731397870102,-2400.0,0.000146,5]
[342066217,1731397870114,-255.0,0.00014619,2]
[342066218,1731397870124,-2000.0,0.00014645,2]
[342066219,1731397870133,-200.0,0.00014645,2]
[342066220,1731397870143,-189.85092208,0.00014657,2]
[342066221,1731397870152,-150.0,0.00014657,2]
[342066222,1731397870162,-150.0,0.00014657,2]
[342066223,1731397870171,-150.0,0.00014657,2]
[342066224,1731397870180,-150.0,0.00014657,2]
[342066225,1731397870190,-500.0,0.00014657,2]
[342066226,1731397870199,-500.0,0.00014657,2]
[342066227,1731397870207,-150.0,0.00014657,2]
[342066228,1731397870217,-1171.0,0.00014657,2]
[342066229,1731397870226,-500.0,0.00014657,2]
[342066230,1731397870235,-500.0,0.00014657,2]
[342066231,1731397870244,-500.0,0.00014657,2]
[342066232,1731397870254,-264.54055734,0.00014657,2]
[342066233,1731397870267,-160.4483905,0.00014682,2]
[342066234,1731397870276,-951.14931555,0.000147,2]
[342066235,1731397870285,-500.0,0.000147,2]
[342066236,1731397870295,-10700.0,0.000147,2]
[342066237,1731397870304,-1010.0,0.000147,2]
[342066238,1731397870313,-2400.0,0.000147,5]
[342066239,1731397870323,-2590.18799657,0.00014744,2]
[342066240,1731397870333,-500.0,0.00014755,2]
[342066241,1731397870343,-500.0,0.00014755,2]
[342066242,1731397870351,-500.0,0.00014755,2]
[342066243,1731397870362,-500.0,0.00014755,2]
[342066244,1731397870371,-500.0,0.00014755,2]
[342066245,1731397870380,-500.0,0.00014755,2]
[342066246,1731397870389,-500.0,0.00014755,2]
[342066247,1731397870399,-500.0,0.00014755,2]
[342066248,1731397870408,-500.0,0.00014755,2]
[342066249,1731397870417,-500.0,0.00014755,2]
[342066250,1731397870427,-500.0,0.00014755,2]
[342066251,1731397870436,-500.0,0.00014755,2]
[342066252,1731397870446,-197.40546678,0.00014755,2]
[342066253,1731397870455,-500.0,0.00014755,2]
[342066254,1731397870464,-500.0,0.00014755,2]
[342066255,1731397870474,-500.0,0.00014755,2]
[342066256,1731397870483,-500.0,0.00014755,2]
[342066257,1731397870493,-1000.0,0.00014755,2]
[342066258,1731397870502,-1442.62,0.00014755,2]
[342066259,1731397870511,-2728.17,0.00014755,2]
[342066260,1731397870521,-982.85,0.00014755,2]
[342066261,1731397870530,-1447.02,0.00014755,2]
[342066262,1731397870540,-500.0,0.00014755,2]
[342066263,1731397870550,-520.93320558,0.00014755,2]
[342066264,1731397870559,-500.0,0.00014755,2]
[342066265,1731397870567,-2649.32,0.00014755,2]
[342066266,1731397870577,-2406.7,0.00014755,2]
[342066267,1731397870586,-500.0,0.00014755,2]
[342066268,1731397870596,-760.9,0.00014755,2]
[342066269,1731397870610,-500.0,0.00014755,2]
[342066270,1731397870620,-1609.78,0.00014755,2]
[342066271,1731397870630,-500.0,0.00014755,2]
[342066272,1731397870639,-2977.14,0.00014755,2]
[342066273,1731397870649,-2110.51,0.00014755,2]
[342066274,1731397870659,-500.0,0.00014755,2]
[342066275,1731397870668,-2094.83,0.00014755,2]
[342066276,1731397870678,-2179.63,0.00014755,2]
[342066277,1731397870687,-500.0,0.00014755,2]
[342066278,1731397870696,-500.0,0.00014755,2]
[342066279,1731397870706,-500.0,0.00014755,2]
[342066280,1731397870715,-3120.77,0.00014755,2]
[342066281,1731397870726,-500.0,0.00014755,2]
[342066282,1731397870735,-1646.54,0.00014755,2]
[342066283,1731397870744,-500.0,0.00014755,2]
[342066284,1731397870754,-930.07,0.00014755,2]
[342066285,1731397870763,-500.0,0.00014755,2]
[342066286,1731397870773,-1179.65,0.00014755,2]
[342066287,1731397870782,-622.72,0.00014755,2]
[342066288,1731397870792,-500.0,0.00014755,2]
[342066289,1731397870801,-500.0,0.00014755,2]
[342066290,1731397870811,-500.0,0.00014755,2]
[342066291,1731397870821,-444.23830294,0.00014789,2]
[342066292,1731397870831,-543.30632249,0.00014789,2]
[342066293,1731397870840,-2000.0,0.00014791,2]
[342066294,1731397870850,-200.0,0.00014791,2]
[342066295,1731397870862,-193.19909563,0.00014791,2]
[342066296,1731397870872,-500.0,0.00014794,2]
[342066297,1731397870881,-3100.0,0.000148,5]
[342066298,1731397870891,-500.0,0.00014803,2]
[342066299,1731397870900,-500.0,0.00014812,2]
[342066300,1731397870910,-500.0,0.00014821,2]
[342066301,1731397870919,-500.0,0.0001483,2]
[342066302,1731397870928,-500.0,0.00014838,2]
[342066303,1731397870938,-444.23830293,0.00014845,2]
[342066304,1731397870948,-543.30632247,0.00014845,2]
[342066305,1731397870957,-500.0,0.00014847,2]
[342066306,1731397870966,-159.87,0.00014849,2]
[342066307,1731397870976,-500.0,0.00014856,2]
[342066308,1731397870985,-500.0,0.00014865,2]
[342066309,1731397870994,-500.0,0.00014873,2]
[342066310,1731397871004,-181.12904085,0.00014873,2]
[342066311,1731397871013,-383.1266131,0.00014873,2]
[342066312,1731397871023,-500.0,0.00014873,2]
[342066313,1731397871032,-500.0,0.00014873,2]
[342066314,1731397871042,-500.97059732,0.00014873,2]
[342066315,1731397871051,-500.0,0.00014873,2]
[342066316,1731397871061,-500.0,0.00014873,2]
[342066317,1731397871070,-500.0,0.00014873,2]
[342066318,1731397871080,-500.0,0.00014874,2]
[342066319,1731397871089,-500.0,0.00014875,2]
[342066320,1731397871099,-667.69,0.00014875,2]
[342066321,1731397871111,-510.4,0.00014875,2]
[342066322,1731397871121,-645.83,0.00014875,2]
[342066323,1731397871131,-990.1,0.00014876,2]
[342066324,1731397871140,-536.68,0.00014876,2]
[342066325,1731397871149,-5244.09,0.00014876,2]
[342066326,1731397871159,-856.06,0.00014876,2]
[342066327,1731397871168,-500.0,0.00014876,2]
[342066328,1731397871177,-5929.72,0.00014876,2]
[342066329,1731397871187,-22033.69,0.00014876,2]
[342066330,1731397871196,-3395.63,0.00014876,2]
[342066331,1731397871205,-2808.91,0.00014876,2]
[342066332,1731397871215,-2157.79,0.00014876,2]
[342066333,1731397871224,-500.0,0.00014876,2]
[342066334,1731397871234,-13139.0,0.00014877,2]
[342066335,1731397871243,-449.0,0.0001488,2]
[342066336,1731397871253,-500.0,0.00014882,2]
[342066337,1731397871267,-229.64279362,0.00014889,2]
[342066338,1731397871276,-500.0,0.00014889,2]
[342066339,1731397871286,-500.0,0.00014889,2]
[342066340,1731397871297,-500.0,0.00014889,2]
[342066341,1731397871307,-500.0,0.00014889,2]
[342066342,1731397871317,-500.0,0.00014889,2]
[342066343,1731397871327,-500.0,0.00014889,2]
[342066344,1731397871340,-500.0,0.00014889,2]
[342066345,1731397871350,-500.0,0.00014889,2]
[342066346,1731397871363,-180.82375956,0.00014889,2]
[342066347,1731397871373,-500.0,0.00014889,2]
[342066348,1731397871383,-500.0,0.00014889,2]
[342066349,1731397871392,-500.0,0.00014889,2]
[342066350,1731397871402,-385.7639087,0.00014889,2]
[342066351,1731397871412,-500.0,0.00014889,2]
[342066352,1731397871421,-500.0,0.00014889,2]
[342066353,1731397871431,-990.1,0.00014889,2]
[342066354,1731397871441,-1000.0,0.00014889,2]
[342066355,1731397871451,-1442.62,0.00014889,2]
[342066356,1731397871460,-2728.17,0.00014889,2]
[342066357,1731397871470,-982.85,0.00014889,2]
[342066358,1731397871480,-1447.02,0.00014889,2]
[342066359,1731397871490,-500.0,0.00014889,2]
[342066360,1731397871501,-536.68,0.00014889,2]
[342066361,1731397871511,-500.0,0.00014889,2]
[342066362,1731397871520,-5244.09,0.00014889,2]
[342066363,1731397871530,-2649.32,0.00014889,2]
[342066364,1731397871540,-2406.7,0.00014889,2]
[342066365,1731397871549,-856.06,0.00014889,2]
[342066366,1731397871559,-500.0,0.00014889,2]
[342066367,1731397871568,-760.9,0.00014889,2]
[342066368,1731397871578,-500.0,0.00014889,2]
[342066369,1731397871588,-500.0,0.00014889,2]
[342066370,1731397871598,-1609.78,0.00014889,2]
[342066371,1731397871611,-500.0,0.00014889,2]
[342066372,1731397871624,-2977.14,0.00014889,2]
[342066373,1731397871633,-5929.72,0.00014889,2]
[342066374,1731397871643,-2110.51,0.00014889,2]
[342066375,1731397871653,-500.0,0.00014889,2]
[342066376,1731397871663,-2094.83,0.00014889,2]
[342066377,1731397871673,-22033.69,0.00014889,2]
[342066378,1731397871682,-2179.63,0.00014889,2]
[342066379,1731397871692,-3395.63,0.00014889,2]
[342066380,1731397871702,-500.0,0.00014889,2]
[342066381,1731397871711,-500.0,0.00014889,2]
[342066382,1731397871720,-500.0,0.00014889,2]
[342066383,1731397871730,-2808.91,0.00014889,2]
[342066384,1731397871740,-3120.77,0.00014889,2]
[342066385,1731397871750,-2157.79,0.00014889,2]
[342066386,1731397871759,-535.45993751,0.00014889,2]
[342066387,1731397871770,-1646.54,0.00014889,2]
[342066388,1731397871780,-500.0,0.00014889,2]
[342066389,1731397871790,-551.24115365,0.00014889,2]
[342066390,1731397871801,-930.07,0.00014889,2]
[342066391,1731397871811,-500.0,0.00014889,2]
[342066392,1731397871822,-1179.65,0.00014889,2]
[342066393,1731397871831,-591.36,0.00014889,2]
[342066394,1731397871841,-667.69,0.00014889,2]
[342066395,1731397871851,-622.72,0.00014889,2]
[342066396,1731397871864,-500.0,0.00014889,2]
[342066397,1731397871874,-645.83,0.00014889,2]
[342066398,1731397871883,-500.0,0.00014889,2]
[342066399,1731397871893,-500.0,0.00014889,2]
[342066400,1731397871903,-268578.42376005,0.0001489,2]
[342066401,1731397871913,-500.0,0.00014891,2]
[342066402,1731397871923,-2000.0,0.000149,2]
[342066403,1731397871933,-2000.0,0.000149,2]
[342066404,1731397871943,-2000.0,0.000149,2]
[342066405,1731397871952,-23769.03829257,0.000149,3]
[342066406,1731397871962,-566.66331779,0.000149,2]
[342066407,1731397871972,-2000.0,0.000149,2]
[342066408,1731397871982,-2000.0,0.000149,2]
[342066409,1731397871991,-2000.0,0.000149,2]
[342066410,1731397872001,-2000.0,0.000149,2]
[342066411,1731397872011,-2000.0,0.000149,2]
[342066412,1731397872021,-2000.0,0.000149,2]
[342066413,1731397872031,-2000.0,0.000149,2]
[342066414,1731397872041,-5800.0,0.000149,2]
[342066415,1731397872051,-200.0,0.000149,2]
[342066416,1731397872061,-500.0,0.000149,2]
[342066417,1731397872070,-166.01655638,0.000149,2]
[342066418,1731397872080,-213.8467306,0.000149,2]
[342066419,1731397872090,-213.84673059,0.000149,2]
[342066420,1731397872099,-213.84673059,0.000149,2]
[342066421,1731397872110,-2590.18799657,0.000149,2]
[342066422,1731397872119,-160.4483905,0.000149,2]
[342066423,1731397872129,-444.23830293,0.000149,2]
[342066424,1731397872139,-193.19909563,0.000149,2]
[342066425,1731397872150,-543.30632247,0.000149,2]
[342066426,1731397872160,-951.14931555,0.000149,2]
[342066427,1731397872169,-500.0,0.00014919,2]
[342066428,1731397872179,-500.0,0.00014919,2]
[342066429,1731397872189,-500.0,0.00014919,2]
[342066430,1731397872199,-500.0,0.00014919,2]
[342066431,1731397872209,-500.0,0.00014919,2]
[342066432,1731397872219,-500.0,0.00014919,2]
[342066433,1731397872229,-500.0,0.00014919,2]
[342066434,1731397872240,-500.0,0.00014919,2]
[342066435,1731397872251,-500.0,0.00014919,2]
[342066436,1731397872264,-500.0,0.00014919,2]
[342066437,1731397872275,-500.0,0.00014919,2]
[342066438,1731397872286,-500.0,0.00014919,2]
[342066439,1731397872297,-500.0,0.00014919,2]
[342066440,1731397872309,-990.1,0.00014919,2]
[342066441,1731397872319,-637.24089058,0.00014919,2]
[342066442,1731397872330,-1442.62,0.00014919,2]
[342066443,1731397872342,-2728.17,0.00014919,2]
[342066444,1731397872352,-982.85,0.00014919,2]
[342066445,1731397872365,-1447.02,0.00014919,2]
[342066446,1731397872375,-500.0,0.00014919,2]
[342066447,1731397872385,-536.68,0.00014919,2]
[342066448,1731397872395,-500.0,0.00014919,2]
[342066449,1731397872404,-2649.32,0.00014919,2]
[342066450,1731397872414,-2406.7,0.00014919,2]
[342066451,1731397872424,-500.0,0.00014919,2]
[342066452,1731397872433,-760.9,0.00014919,2]
[342066453,1731397872443,-500.0,0.00014919,2]
[342066454,1731397872453,-1609.78,0.00014919,2]
[342066455,1731397872462,-500.0,0.00014919,2]
[342066456,1731397872472,-2977.14,0.00014919,2]
[342066457,1731397872482,-2110.51,0.00014919,2]
[342066458,1731397872492,-500.0,0.00014919,2]
[342066459,1731397872502,-2094.83,0.00014919,2]
[342066460,1731397872512,-22033.69,0.00014919,2]
[342066461,1731397872522,-2179.63,0.00014919,2]
[342066462,1731397872532,-500.0,0.00014919,2]
[342066463,1731397872542,-500.0,0.00014919,2]
[342066464,1731397872552,-500.0,0.00014919,2]
[342066465,1731397872561,-3120.77,0.00014919,2]
[342066466,1731397872572,-1646.54,0.00014919,2]
[342066467,1731397872777,-500.0,0.00014919,2]
[342066468,1731397872787,-930.07,0.00014919,2]
[342066469,1731397872797,-500.0,0.00014919,2]
[342066470,1731397872807,-1179.65,0.00014919,2]
[342066471,1731397872817,-667.69,0.00014919,2]
[342066472,1731397872827,-622.72,0.00014919,2]
[342066473,1731397872837,-500.0,0.00014919,2]
[342066474,1731397872846,-645.83,0.00014919,2]
[342066475,1731397872856,-498.51385997,0.00014919,2]
[342066476,1731397872864,-585.20337545,0.00014919,2]
[342066477,1731397872873,-128915.60048417,0.0001492,2]
[342066478,1731397872883,-5244.09,0.0001493,2]
[342066479,1731397872892,-856.06,0.0001493,2]
[342066480,1731397872901,-500.0,0.0001493,2]
[342066481,1731397872911,-5929.72,0.0001493,2]
[342066482,1731397872920,-3395.63,0.0001493,2]
[342066483,1731397872929,-2808.91,0.0001493,2]
[342066484,1731397872938,-2157.79,0.0001493,2]
[342066485,1731397872948,-150.0,0.00014931,2]
[342066486,1731397872958,-166.18275475,0.00014931,2]
[342066487,1731397872967,-155.34257397,0.00014931,2]
[342066488,1731397872977,-198.04994913,0.00014931,2]
[342066489,1731397872987,-500.0,0.00014931,2]
[342066490,1731397872996,-500.0,0.00014931,2]
[342066491,1731397873005,-1171.0,0.00014931,2]
[342066492,1731397873014,-500.0,0.00014931,2]
[342066493,1731397873024,-500.0,0.00014931,2]
[342066494,1731397873034,-687.62192626,0.00014931,2]
[342066495,1731397873044,-2000.0,0.00014939,2]
[342066496,1731397873054,-200.0,0.00014939,2]
[342066497,1731397873063,-5800.0,0.00014965,2]
[342066498,1731397873073,-500.79317923,0.00014973,2]
[342066499,1731397873082,-5800.0,0.00014974,2]
[342066500,1731397873092,-5800.0,0.00014982,2]
[342066501,1731397873101,-500.0,0.00014986,2]
[342066502,1731397873113,-500.0,0.00014986,2]
[342066503,1731397873123,-500.0,0.00014986,2]
[342066504,1731397873132,-500.0,0.00014986,2]
[342066505,1731397873143,-500.0,0.00014986,2]
[342066506,1731397873152,-500.0,0.00014986,2]
[342066507,1731397873162,-500.0,0.00014986,2]
[342066508,1731397873172,-500.0,0.00014986,2]
[342066509,1731397873182,-500.0,0.00014986,2]
[342066510,1731397873192,-500.0,0.00014986,2]
[342066511,1731397873202,-500.0,0.00014986,2]
[342066512,1731397873211,-500.0,0.00014986,2]
[342066513,1731397873221,-500.0,0.00014986,2]
[342066514,1731397873231,-500.0,0.00014986,2]
[342066515,1731397873240,-990.1,0.00014986,2]
[342066516,1731397873250,-1442.62,0.00014986,2]
[342066517,1731397873262,-2728.17,0.00014986,2]
[342066518,1731397873272,-982.85,0.00014986,2]
[342066519,1731397873281,-1447.02,0.00014986,2]
[342066520,1731397873291,-500.0,0.00014986,2]
[342066521,1731397873302,-536.68,0.00014986,2]
[342066522,1731397873311,-598.11219782,0.00014986,2]
[342066523,1731397873321,-2649.32,0.00014986,2]
[342066524,1731397873331,-2406.7,0.00014986,2]
[342066525,1731397873341,-500.0,0.00014986,2]
[342066526,1731397873351,-760.9,0.00014986,2]
[342066527,1731397873362,-500.0,0.00014986,2]
[342066528,1731397873372,-1609.78,0.00014986,2]
[342066529,1731397873382,-500.0,0.00014986,2]
[342066530,1731397873391,-2977.14,0.00014986,2]
[342066531,1731397873401,-2110.51,0.00014986,2]
[342066532,1731397873410,-500.0,0.00014986,2]
[342066533,1731397873420,-2094.83,0.00014986,2]
[342066534,1731397873429,-22033.69,0.00014986,2]
[342066535,1731397873439,-2179.63,0.00014986,2]
[342066536,1731397873449,-500.0,0.00014986,2]
[342066537,1731397873459,-500.0,0.00014986,2]
[342066538,1731397873469,-500.0,0.00014986,2]
[342066539,1731397873478,-3120.77,0.00014986,2]
[342066540,1731397873488,-1646.54,0.00014986,2]
[342066541,1731397873498,-500.0,0.00014986,2]
[342066542,1731397873508,-930.07,0.00014986,2]
[342066543,1731397873518,-500.0,0.00014986,2]
[342066544,1731397873528,-1179.65,0.00014986,2]
[342066545,1731397873538,-667.69,0.00014986,2]
[342066546,1731397873548,-622.72,0.00014986,2]
[342066547,1731397873558,-500.0,0.00014986,2]
[342066548,1731397873568,-645.83,0.00014986,2]
[342066549,1731397873578,-175919.0,0.00014986,2]
[342066550,1731397873587,-795.0,0.00014986,2]
[342066551,1731397873597,-5244.09,0.00014989,2]
[342066552,1731397873609,-856.06,0.00014989,2]
[342066553,1731397873619,-500.0,0.00014989,2]
[342066554,1731397873629,-5929.72,0.00014989,2]
[342066555,1731397873638,-3395.63,0.00014989,2]
[342066556,1731397873649,-2808.91,0.00014989,2]
[342066557,1731397873658,-2157.79,0.00014989,2]
[342066558,1731397873668,-150.048,0.0001499,2]
[342066559,1731397873678,-5956.1443676,0.0001499,2]
[342066560,1731397873688,-5342.9229831,0.0001499,2]
[342066561,1731397873697,-4729.7015985,0.0001499,2]
[342066562,1731397873706,-4116.480214,0.0001499,2]
[342066563,1731397873716,-3503.2588295,0.0001499,2]
[342066564,1731397873725,-2984.8638778,0.0001499,2]
[342066565,1731397873734,-2677.5539392,0.0001499,2]
[342066566,1731397873743,-2370.2440006,0.0001499,2]
[342066567,1731397873751,-2062.9340621,0.0001499,2]
[342066568,1731397873760,-1755.6241235,0.0001499,2]
[342066569,1731397873771,-2500.2942852,0.0001499,2]
[342066570,1731397873780,-2245.3091658,0.0001499,2]
[342066571,1731397873789,-1990.3240464,0.0001499,2]
[342066572,1731397873799,-1735.338927,0.0001499,2]
[342066573,1731397873809,-1480.3538076,0.0001499,2]
[342066574,1731397873819,-667.69,0.0001499,2]
[342066575,1731397873828,-15396.0791561,0.0001499,2]
[342066576,1731397873837,-13841.0040961,0.0001499,2]
[342066577,1731397873847,-12285.929036,0.0001499,2]
[342066578,1731397873858,-10730.853976,0.0001499,2]
[342066579,1731397873868,-9175.778916,0.0001499,2]
[342066580,1731397873877,-645.83,0.0001499,2]
[342066581,1731397873886,-306.127274,0.0001499,2]
[342066582,1731397873896,-296.445977,0.0001499,2]
[342066583,1731397873905,-286.7646801,0.0001499,2]
[342066584,1731397873915,-277.0833832,0.0001499,2]
[342066585,1731397873924,-267.4020863,0.0001499,2]
[342066586,1731397873934,-5800.0,0.0001499,2]
[342066587,1731397873943,-500.0,0.00014998,2]
[342066588,1731397873952,-500.0,0.00014998,2]
[342066589,1731397873961,-500.0,0.00014998,2]
[342066590,1731397873971,-500.0,0.00014998,2]
[342066591,1731397873980,-500.0,0.00014998,2]
[342066592,1731397873989,-500.0,0.00014998,2]
[342066593,1731397873999,-500.0,0.00014998,2]
[342066594,1731397874008,-500.0,0.00014998,2]
[342066595,1731397874018,-500.0,0.00014998,2]
[342066596,1731397874028,-500.0,0.00014998,2]
[342066597,1731397874037,-500.0,0.00014998,2]
[342066598,1731397874047,-500.0,0.00014998,2]
[342066599,1731397874057,-595.9055413,0.00014998,2]
[342066600,1731397874066,-500.0,0.00014998,2]
[342066601,1731397874075,-197.67043625,0.00014998,2]
[342066602,1731397874084,-500.0,0.00014998,2]
[342066603,1731397874094,-500.0,0.00014998,2]
[342066604,1731397874103,-492.46177119,0.00014998,2]
[342066605,1731397874115,-500.0,0.00014998,2]
[342066606,1731397874124,-500.0,0.00014998,2]
[342066607,1731397874134,-500.0,0.00014998,2]
[342066608,1731397874143,-500.0,0.00014998,2]
[342066609,1731397874153,-500.0,0.00014998,2]
[342066610,1731397874162,-500.0,0.00014998,2]
[342066611,1731397874171,-500.0,0.00014998,2]
[342066612,1731397874180,-500.0,0.00014998,2]
[342066613,1731397874190,-500.0,0.00014998,2]
[342066614,1731397874199,-500.0,0.00014998,2]
[342066615,1731397874209,-500.0,0.00014998,2]
[342066616,1731397874218,-500.0,0.00014998,2]
[342066617,1731397874227,-500.0,0.00014998,2]
[342066618,1731397874237,-500.0,0.00014998,2]
[342066619,1731397874246,-500.0,0.00014998,2]
[342066620,1731397874258,-500.0,0.00014998,2]
[342066621,1731397874268,-500.0,0.00014998,2]
[342066622,1731397874277,-347.71161194,0.00014998,2]
[342066623,1731397874287,-990.1,0.00014998,2]
[342066624,1731397874297,-990.1,0.00014998,2]
[342066625,1731397874306,-990.1,0.00014998,2]
[342066626,1731397874316,-990.1,0.00014998,2]
[342066627,1731397874325,-990.26364042,0.00014998,2]
[342066628,1731397874336,-1442.62,0.00014998,2]
[342066629,1731397874345,-1442.62,0.00014998,2]
[342066630,1731397874355,-1442.62,0.00014998,2]
[342066631,1731397874367,-2728.17,0.00014998,2]
[342066632,1731397874376,-2728.17,0.00014998,2]
[342066633,1731397874385,-2728.17,0.00014998,2]
[342066634,1731397874395,-982.85,0.00014998,2]
[342066635,1731397874404,-982.85,0.00014998,2]
[342066636,1731397874414,-982.85,0.00014998,2]
[342066637,1731397874424,-1447.02,0.00014998,2]
[342066638,1731397874433,-1447.02,0.00014998,2]
[342066639,1731397874443,-1447.02,0.00014998,2]
[342066640,1731397874452,-500.0,0.00014998,2]
[342066641,1731397874461,-500.0,0.00014998,2]
[342066642,1731397874471,-500.0,0.00014998,2]
[342066643,1731397874480,-536.68,0.00014998,2]
[342066644,1731397874490,-536.68,0.00014998,2]
[342066645,1731397874500,-536.68,0.00014998,2]
[342066646,1731397874510,-536.68,0.00014998,2]
[342066647,1731397874520,-536.87810071,0.00014998,2]
[342066648,1731397874529,-5244.09,0.00014998,2]
[342066649,1731397874538,-2649.32,0.00014998,2]
[342066650,1731397874548,-2649.32,0.00014998,2]
[342066651,1731397874557,-2649.32,0.00014998,2]
[342066652,1731397874566,-2406.7,0.00014998,2]
[342066653,1731397874576,-2406.7,0.00014998,2]
[342066654,1731397874585,-2406.7,0.00014998,2]
[342066655,1731397874594,-856.06,0.00014998,2]
[342066656,1731397874604,-357.57135587,0.00014998,2]
[342066657,1731397874615,-210.20463025,0.00014998,2]
[342066658,1731397874624,-760.9,0.00014998,2]
[342066659,1731397874634,-760.9,0.00014998,2]
[342066660,1731397874643,-760.9,0.00014998,2]
[342066661,1731397874653,-500.0,0.00014998,2]
[342066662,1731397874663,-1609.78,0.00014998,2]
[342066663,1731397874672,-1609.78,0.00014998,2]
[342066664,1731397874681,-1609.78,0.00014998,2]
[342066665,1731397874691,-2977.14,0.00014998,2]
[342066666,1731397874700,-2977.14,0.00014998,2]
[342066667,1731397874709,-2977.14,0.00014998,2]
[342066668,1731397874718,-5929.72,0.00014998,2]
[342066669,1731397874727,-2110.51,0.00014998,2]
[342066670,1731397874736,-2110.51,0.00014998,2]
[342066671,1731397874745,-2110.51,0.00014998,2]
[342066672,1731397874754,-500.0,0.00014998,2]
[342066673,1731397874763,-498.27437864,0.00014998,2]
[342066674,1731397874772,-2094.83,0.00014998,2]
[342066675,1731397874781,-2094.83,0.00014998,2]
[342066676,1731397874790,-2094.83,0.00014998,2]
[342066677,1731397874799,-22033.69,0.00014998,2]
[342066678,1731397874808,-22033.69,0.00014998,2]
[342066679,1731397874817,-22033.69,0.00014998,2]
[342066680,1731397874827,-22033.69,0.00014998,2]
[342066681,1731397874836,-22033.89195089,0.00014998,2]
[342066682,1731397874846,-2179.63,0.00014998,2]
[342066683,1731397874855,-2179.63,0.00014998,2]
[342066684,1731397874866,-2179.63,0.00014998,2]
[342066685,1731397874874,-3395.63,0.00014998,2]
[342066686,1731397874884,-500.0,0.00014998,2]
[342066687,1731397874893,-237.83107085,0.00014998,2]
[342066688,1731397874903,-500.0,0.00014998,2]
[342066689,1731397874913,-500.0,0.00014998,2]
[342066690,1731397874923,-498.24744491,0.00014998,2]
[342066691,1731397874932,-500.0,0.00014998,2]
[342066692,1731397874941,-500.0,0.00014998,2]
[342066693,1731397874950,-500.0,0.00014998,2]
[342066694,1731397874960,-2808.91,0.00014998,2]
[342066695,1731397874969,-3120.77,0.00014998,2]
[342066696,1731397874978,-3120.77,0.00014998,2]
[342066697,1731397874988,-3120.77,0.00014998,2]
[342066698,1731397874997,-2157.79,0.00014998,2]
[342066699,1731397875007,-1646.54,0.00014998,2]
[342066700,1731397875017,-1646.54,0.00014998,2]
[342066701,1731397875027,-1646.54,0.00014998,2]
[342066702,1731397875036,-500.0,0.00014998,2]
[342066703,1731397875046,-500.0,0.00014998,2]
[342066704,1731397875056,-500.0,0.00014998,2]
[342066705,1731397875065,-930.07,0.00014998,2]
[342066706,1731397875074,-930.07,0.00014998,2]
[342066707,1731397875143,-930.07,0.00014998,2]
[342066708,1731397875152,-500.0,0.00014998,2]
[342066709,1731397875163,-500.0,0.00014998,2]
[342066710,1731397875172,-500.0,0.00014998,2]
[342066711,1731397875182,-1179.65,0.00014998,2]